fUST/lending_fUST_20240912
["ID","MTS","AMOUNT","RATE_DAILY","PERIOD"]
[337771738,1726093847682,-500.0,0.00024657,2]
[337771739,1726093847693,-151.0,0.00024657,7]
[337771740,1726093847702,-500.0,0.00024657,2]
[337771741,1726093847713,-195.86522903,0.00024657,2]
[337771742,1726093847724,-1086.63,0.00024657,2]
[337771743,1726093847734,-503.57223232,0.00024657,2]
[337771744,1726093847745,-406.31871012,0.00024657,2]
[337771745,1726093847755,-500.0,0.00024657,2]
[337771746,1726093847764,-812.51,0.00024657,2]
[337771747,1726093847773,-649.85,0.00024657,2]
[337771748,1726093847782,-500.0,0.00024657,2]
[337771749,1726093847791,-500.0,0.00024657,2]
[337771750,1726093847801,-1006.51054571,0.00024657,2]
[337771751,1726093847813,-500.0,0.00024657,2]
[337771752,1726093847823,-503.51623174,0.00024657,2]
[337771753,1726093847834,-502.10336929,0.00024657,2]
[337771754,1726093847843,-500.0,0.00024657,2]
[337771755,1726093847853,-500.0,0.00024657,2]
[337771756,1726093847862,-500.0,0.00024657,2]
[337771757,1726093847871,-500.0,0.00024657,2]
[337771758,1726093847881,-199.33434611,0.00024657,2]
[337771759,1726093847890,-500.0,0.00024657,2]
[337771760,1726093847899,-500.0,0.00024657,2]
[337771761,1726093847909,-500.0,0.00024657,2]
[337771762,1726093847918,-500.0,0.00024657,2]
[337771763,1726093847927,-500.0,0.00024657,2]
[337771764,1726093847936,-500.0,0.00024657,2]
[337771765,1726093847946,-500.0,0.00024657,2]
[337771766,1726093847954,-500.0,0.00024657,2]
[337771767,1726093847963,-503.33646504,0.00024657,2]
[337771768,1726093847973,-500.0,0.00024657,2]
[337771769,1726093847982,-500.0,0.00024657,2]
[337771770,1726093847991,-500.0,0.00024657,2]
[337771771,1726093848001,-500.0,0.00024657,2]
[337771772,1726093848011,-502.82304555,0.00024657,2]
[337771773,1726093848021,-536.67,0.00024657,2]
[337771774,1726093848031,-500.0,0.00024657,2]
[337771775,1726093848040,-170.755062,0.00024657,7]
[337771776,1726093848052,-500.0,0.00024657,2]
[337771777,1726093848061,-754.48,0.00024657,2]
[337771778,1726093848070,-546.13,0.00024657,2]
[337771779,1726093848080,-500.0,0.00024657,2]
[337771780,1726093848091,-500.0,0.00024657,2]
[337771781,1726093848101,-500.0,0.00024657,2]
[337771782,1726093848112,-151.0,0.00024657,7]
[337771783,1726093848122,-151.0,0.00024657,7]
[337771784,1726093848134,-151.0,0.00024657,7]
[337771785,1726093848143,-500.0,0.00024657,2]
[337771786,1726093848154,-151.0,0.00024657,7]
[337771787,1726093848164,-500.0,0.00024657,2]
[337771788,1726093848173,-500.0,0.00024657,2]
[337771789,1726093848182,-1015.57,0.00024657,2]
[337771790,1726093848192,-500.0,0.00024657,2]
[337771791,1726093848201,-500.0,0.00024657,2]
[337771792,1726093848210,-500.0,0.00024657,2]
[337771793,1726093848220,-500.0,0.00024657,2]
[337771794,1726093848229,-500.0,0.00024657,2]
[337771795,1726093848239,-500.0,0.00024657,2]
[337771796,1726093848248,-500.0,0.00024657,2]
[337771797,1726093848257,-500.0,0.00024657,2]
[337771798,1726093848266,-500.0,0.00024657,2]
[337771799,1726093848275,-500.0,0.00024657,2]
[337771800,1726093848285,-500.0,0.00024657,2]
[337771801,1726093848295,-512.31,0.00024657,2]
[337771802,1726093848304,-502.4771635,0.00024657,2]
[337771803,1726093848314,-500.0,0.00024657,2]
[337771804,1726093848325,-500.0,0.00024657,2]
[337771805,1726093848334,-500.0,0.00024657,2]
[337771806,1726093848344,-542.47,0.00024657,2]
[337771807,1726093848354,-186.83150718,0.00024657,2]
[337771808,1726093848363,-502.4974371,0.00024657,2]
[337771809,1726093848372,-500.0,0.00024657,2]
[337771810,1726093848381,-500.0,0.00024657,2]
[337771811,1726093848390,-500.0,0.00024657,2]
[337771812,1726093848399,-501.01690177,0.00024657,2]
[337771813,1726093848408,-500.0,0.00024657,2]
[337771814,1726093848418,-520.04,0.00024657,2]
[337771815,1726093848427,-515.93,0.00024657,2]
[337771816,1726093848436,-500.0,0.00024657,2]
[337771817,1726093848447,-500.0,0.00024657,2]
[337771818,1726093848458,-500.0,0.00024657,2]
[337771819,1726093848467,-500.0,0.00024657,2]
[337771820,1726093848476,-500.0,0.00024657,2]
[337771821,1726093848485,-500.0,0.00024657,2]
[337771822,1726093848494,-500.0,0.00024657,2]
[337771823,1726093848504,-686.67,0.00024657,2]
[337771824,1726093848513,-500.0,0.00024657,2]
[337771825,1726093848522,-500.0,0.00024657,2]
[337771826,1726093848531,-500.0,0.00024657,2]
[337771827,1726093848542,-500.0,0.00024657,2]
[337771828,1726093848551,-522.63756997,0.00024657,2]
[337771829,1726093848563,-787.2,0.00024657,2]
[337771830,1726093848572,-328.68548438,0.00024657,2]
[337771831,1726093848588,-605.03,0.00024657,2]
[337771832,1726093848598,-500.0,0.00024657,2]
[337771833,1726093848607,-614.94674532,0.00024657,2]
[337771834,1726093848617,-539.14119486,0.00024657,2]
[337771835,1726093848626,-616.37,0.00024657,2]
[337771836,1726093848636,-151.0,0.00024657,2]
[337771837,1726093848645,-500.0,0.00024657,2]
[337771838,1726093848653,-151.0,0.00024657,2]
[337771839,1726093848663,-500.0,0.00024657,2]
[337771840,1726093848672,-500.0,0.00024657,2]
[337771841,1726093848681,-500.0,0.00024657,2]
[337771842,1726093848690,-737.26,0.00024657,2]
[337771843,1726093848700,-500.0,0.00024657,2]
[337771844,1726093848710,-500.0,0.00024657,2]
[337771845,1726093848720,-500.0,0.00024657,2]
[337771846,1726093848729,-500.0,0.00024657,2]
[337771847,1726093848739,-234.507942,0.00024657,7]
[337771848,1726093848748,-234.507942,0.00024657,7]
[337771849,1726093848758,-500.0,0.00024657,2]
[337771850,1726093848768,-234.507942,0.00024657,7]
[337771851,1726093848778,-234.507942,0.00024657,7]
[337771852,1726093848788,-234.507942,0.00024657,7]
[337771853,1726093848797,-926.93,0.00024657,2]
[337771854,1726093848808,-234.507942,0.00024657,7]
[337771855,1726093848819,-234.507942,0.00024657,7]
[337771856,1726093848831,-234.507942,0.00024657,7]
[337771857,1726093848840,-234.507942,0.00024657,7]
[337771858,1726093848851,-984.59,0.00024657,2]
[337771859,1726093848860,-234.507942,0.00024657,7]
[337771860,1726093848870,-753.64,0.00024657,2]
[337771861,1726093848879,-512.19,0.00024657,2]
[337771862,1726093848889,-151.0,0.00024657,7]
[337771863,1726093848900,-151.0,0.00024657,7]
[337771864,1726093848910,-151.0,0.00024657,7]
[337771865,1726093848920,-151.0,0.00024657,7]
[337771866,1726093848929,-151.0,0.00024657,7]
[337771867,1726093848939,-151.0,0.00024657,7]
[337771868,1726093848950,-1120.45,0.00024657,2]
[337771869,1726093848959,-222.468068,0.00024657,7]
[337771870,1726093848968,-500.0,0.00024657,2]
[337771871,1726093848977,-500.0,0.00024657,2]
[337771872,1726093848987,-500.0,0.00024657,2]
[337771873,1726093848996,-500.0,0.00024657,2]
[337771874,1726093849006,-500.0,0.00024657,2]
[337771875,1726093849015,-1437.78,0.00024657,2]
[337771876,1726093849025,-500.0,0.00024657,2]
[337771877,1726093849034,-500.0,0.00024657,2]
[337771878,1726093849044,-625.15,0.00024657,2]
[337771879,1726093849053,-500.0,0.00024657,2]
[337771880,1726093849063,-500.0,0.00024657,2]
[337771881,1726093849073,-675.1,0.00024657,2]
[337771882,1726093849082,-500.0,0.00024657,2]
[337771883,1726093849092,-500.0,0.00024657,2]
[337771884,1726093849103,-802.84,0.00024657,2]
[337771885,1726093849113,-1709.28,0.00024657,2]
[337771886,1726093849122,-500.0,0.00024657,2]
[337771887,1726093849132,-500.0,0.00024657,2]
[337771888,1726093849142,-920.37,0.00024657,2]
[337771889,1726093849151,-500.0,0.00024657,2]
[337771890,1726093849160,-500.0,0.00024657,2]
[337771891,1726093849169,-1000.0,0.00024657,7]
[337771892,1726093849178,-1000.0,0.00024657,7]
[337771893,1726093849188,-1000.0,0.00024657,7]
[337771894,1726093849197,-1000.0,0.00024657,7]
[337771895,1726093849206,-1000.0,0.00024657,7]
[337771896,1726093849215,-1000.0,0.00024657,7]
[337771897,1726093849225,-158.179329,0.00024657,7]
[337771898,1726093849234,-1000.0,0.00024657,7]
[337771899,1726093849244,-158.179329,0.00024657,7]
[337771900,1726093849254,-1000.0,0.00024657,7]
[337771901,1726093849263,-158.179329,0.00024657,7]
[337771902,1726093849273,-1000.0,0.00024657,7]
[337771903,1726093849282,-158.179329,0.00024657,7]
[337771904,1726093849292,-1000.0,0.00024657,7]
[337771905,1726093849302,-158.179329,0.00024657,7]
[337771906,1726093849311,-1000.0,0.00024657,7]
[337771907,1726093849320,-1000.0,0.00024657,7]
[337771908,1726093849331,-1000.0,0.00024657,7]
[337771909,1726093849341,-1000.0,0.00024657,7]
[337771910,1726093849351,-1000.0,0.00024657,7]
[337771911,1726093849360,-1000.0,0.00024657,7]
[337771912,1726093849370,-158.179329,0.00024657,7]
[337771913,1726093849379,-679.822194,0.00024657,7]
[337771914,1726093849389,-158.179329,0.00024657,7]
[337771915,1726093849398,-158.179329,0.00024657,7]
[337771916,1726093849408,-158.179329,0.00024657,7]
[337771917,1726093849419,-158.179329,0.00024657,7]
[337771918,1726093849429,-500.0,0.00024657,2]
[337771919,1726093849438,-500.0,0.00024657,2]
[337771920,1726093849449,-500.0,0.00024657,2]
[337771921,1726093849459,-500.0,0.00024657,2]
[337771922,1726093849470,-1274.8,0.00024657,2]
[337771923,1726093849479,-500.0,0.00024657,2]
[337771924,1726093849490,-500.0,0.00024657,2]
[337771925,1726093849500,-216.658875,0.00024657,7]
[337771926,1726093849509,-216.658875,0.00024657,7]
[337771927,1726093849519,-216.658875,0.00024657,7]
[337771928,1726093849529,-216.658875,0.00024657,7]
[337771929,1726093849539,-500.0,0.00024657,2]
[337771930,1726093849548,-216.658875,0.00024657,7]
[337771931,1726093849557,-510.24668391,0.00024657,2]
[337771932,1726093849567,-216.658875,0.00024657,7]
[337771933,1726093849577,-216.658875,0.00024657,7]
[337771934,1726093849587,-216.658875,0.00024657,7]
[337771935,1726093849597,-500.0,0.00024657,2]
[337771936,1726093849606,-216.658875,0.00024657,7]
[337771937,1726093849615,-216.658875,0.00024657,7]
[337771938,1726093849625,-151.0,0.00024657,7]
[337771939,1726093849639,-151.0,0.00024657,7]
[337771940,1726093849653,-151.0,0.00024657,7]
[337771941,1726093849668,-153.543772,0.00024657,7]
[337771942,1726093849681,-500.0,0.00024657,2]
[337771943,1726093849695,-1489.27,0.00024657,2]
[337771944,1726093849707,-500.0,0.00024657,2]
[337771945,1726093849718,-500.0,0.00024657,2]
[337771946,1726093849731,-729.39,0.00024657,2]
[337771947,1726093849743,-1299.41,0.00024657,2]
[337771948,1726093849754,-1003.0,0.00024657,2]
[337771949,1726093849768,-200.0,0.00024657,2]
[337771950,1726093849781,-188.63449,0.00024657,7]
[337771951,1726093849794,-500.0,0.00024657,2]
[337771952,1726093849809,-2000.93,0.00024657,2]
[337771953,1726093849821,-500.0,0.00024657,2]
[337771954,1726093849835,-151.883645,0.00024657,7]
[337771955,1726093849848,-500.0,0.00024657,2]
[337771956,1726093849861,-500.0,0.00024657,2]
[337771957,1726093849874,-500.0,0.00024657,2]
[337771958,1726093849886,-500.0,0.00024657,2]
[337771959,1726093849899,-507.69795907,0.00024657,2]
[337771960,1726093849910,-500.0,0.00024657,2]
[337771961,1726093849924,-686.7,0.00024657,2]
[337771962,1726093849938,-236.688621,0.00024657,7]
[337771963,1726093849951,-500.0,0.00024657,2]
[337771964,1726093849964,-500.0,0.00024657,2]
[337771965,1726093849976,-500.0,0.00024657,2]
[337771966,1726093849986,-500.0,0.00024657,2]
[337771967,1726093849996,-500.0,0.00024657,2]
[337771968,1726093850007,-206.54458156,0.00024657,2]
[337771969,1726093850019,-1046.35,0.00024657,2]
[337771970,1726093850030,-500.0,0.00024657,2]
[337771971,1726093850041,-522.04993103,0.00024657,2]
[337771972,1726093850053,-500.0,0.00024657,2]
[337771973,1726093850065,-500.0,0.00024657,2]
[337771974,1726093850077,-500.0,0.00024657,2]
[337771975,1726093850087,-151.0,0.00024657,7]
[337771976,1726093850100,-151.0,0.00024657,7]
[337771977,1726093850112,-151.0,0.00024657,7]
[337771978,1726093850125,-2139.58,0.00024657,2]
[337771979,1726093850137,-504.85671831,0.00024657,2]
[337771980,1726093850148,-151.0,0.00024657,7]
[337771981,1726093850160,-151.0,0.00024657,7]
[337771982,1726093850171,-2888.85,0.00024657,2]
[337771983,1726093850182,-158.05296,0.00024657,7]
[337771984,1726093850193,-240.169911,0.00024657,7]
[337771985,1726093850207,-240.169911,0.00024657,7]
[337771986,1726093850221,-240.169911,0.00024657,7]
[337771987,1726093850234,-240.169911,0.00024657,7]
[337771988,1726093850249,-240.169911,0.00024657,7]
[337771989,1726093850260,-846.4,0.00024657,2]
[337771990,1726093850270,-240.169911,0.00024657,7]
[337771991,1726093850284,-240.169911,0.00024657,7]
[337771992,1726093850297,-240.169911,0.00024657,7]
[337771993,1726093850308,-240.169911,0.00024657,7]
[337771994,1726093850321,-240.169911,0.00024657,7]
[337771995,1726093850334,-500.0,0.00024657,2]
[337771996,1726093850346,-500.0,0.00024657,2]
[337771997,1726093850358,-1596.77,0.00024657,2]
[337771998,1726093850368,-500.0,0.00024657,2]
[337771999,1726093850378,-500.0,0.00024657,2]
[337772000,1726093850390,-570.23,0.00024657,2]
[337772001,1726093850403,-500.0,0.00024657,2]
[337772002,1726093850415,-500.0,0.00024657,2]
[337772003,1726093850428,-2505.74,0.00024657,2]
[337772004,1726093850439,-804.565632,0.00024657,7]
[337772005,1726093850450,-804.565632,0.00024657,7]
[337772006,1726093850462,-804.565632,0.00024657,7]
[337772007,1726093850473,-804.565632,0.00024657,7]
[337772008,1726093850485,-804.565632,0.00024657,7]
[337772009,1726093850495,-804.565632,0.00024657,7]
[337772010,1726093850506,-804.565632,0.00024657,7]
[337772011,1726093850517,-804.565632,0.00024657,7]
[337772012,1726093850527,-804.565632,0.00024657,7]
[337772013,1726093850540,-804.565632,0.00024657,7]
[337772014,1726093850552,-500.0,0.00024657,2]
[337772015,1726093850564,-500.0,0.00024657,2]
[337772016,1726093850575,-500.0,0.00024657,2]
[337772017,1726093850587,-500.0,0.00024657,2]
[337772018,1726093850599,-1982.15,0.00024657,2]
[337772019,1726093850612,-500.0,0.00024657,2]
[337772020,1726093850623,-772.42,0.00024657,2]
[337772021,1726093850635,-500.0,0.00024657,2]
[337772022,1726093850646,-500.0,0.00024657,2]
[337772023,1726093850657,-878.29,0.00024657,2]
[337772024,1726093850668,-500.0,0.00024657,2]
[337772025,1726093850679,-500.0,0.00024657,2]
[337772026,1726093850690,-500.0,0.00024657,2]
[337772027,1726093850700,-196.175194,0.00024657,7]
[337772028,1726093850711,-500.0,0.00024657,2]
[337772029,1726093850722,-509.78,0.00024657,2]
[337772030,1726093850735,-500.0,0.00024657,2]
[337772031,1726093850746,-529.9,0.00024657,2]
[337772032,1726093850758,-500.0,0.00024657,2]
[337772033,1726093850769,-500.0,0.00024657,2]
[337772034,1726093850781,-151.0,0.00024657,7]
[337772035,1726093850792,-151.0,0.00024657,7]
[337772036,1726093850806,-151.0,0.00024657,7]
[337772037,1726093850818,-500.0,0.00024657,2]
[337772038,1726093850830,-500.0,0.00024657,2]
[337772039,1726093850840,-500.0,0.00024657,2]
[337772040,1726093850851,-1301.61,0.00024657,2]
[337772041,1726093850862,-500.0,0.00024657,2]
[337772042,1726093850873,-500.0,0.00024657,2]
[337772043,1726093850883,-500.0,0.00024657,2]
[337772044,1726093850894,-500.0,0.00024657,2]
[337772045,1726093850905,-151.0,0.00024657,7]
[337772046,1726093850916,-151.0,0.00024657,7]
[337772047,1726093850927,-151.0,0.00024657,7]
[337772048,1726093850938,-151.0,0.00024657,7]
[337772049,1726093850948,-600.89222253,0.00024657,2]
[337772050,1726093850959,-1652.63,0.00024657,2]
[337772051,1726093850970,-151.0,0.00024657,7]
[337772052,1726093850980,-151.0,0.00024657,7]
[337772053,1726093850991,-500.0,0.00024657,2]
[337772054,1726093851001,-151.0,0.00024657,7]
[337772055,1726093851012,-151.0,0.00024657,7]
[337772056,1726093851022,-502.13176058,0.00024657,9]
[337772057,1726093851032,-500.0,0.00024657,2]
[337772058,1726093851044,-506.44487212,0.00024657,2]
[337772059,1726093851055,-500.0,0.00024657,2]
[337772060,1726093851066,-500.0,0.00024657,2]
[337772061,1726093851076,-500.0,0.00024657,2]
[337772062,1726093851087,-500.0,0.00024657,2]
[337772063,1726093851097,-151.0,0.00024657,7]
[337772064,1726093851109,-500.0,0.00024657,2]
[337772065,1726093851120,-151.0,0.00024657,7]
[337772066,1726093851131,-151.0,0.00024657,7]
[337772067,1726093851142,-151.0,0.00024657,7]
[337772068,1726093851154,-502.32175449,0.00024657,2]
[337772069,1726093851165,-500.0,0.00024657,2]
[337772070,1726093851176,-516.45,0.00024657,2]
[337772071,1726093851186,-500.0,0.00024657,2]
[337772072,1726093851198,-500.77864265,0.00024657,2]
[337772073,1726093851209,-1451.85,0.00024657,2]
[337772074,1726093851220,-500.0,0.00024657,2]
[337772075,1726093851230,-500.0,0.00024657,2]
[337772076,1726093851241,-500.0,0.00024657,2]
[337772077,1726093851252,-500.0,0.00024657,2]
[337772078,1726093851262,-500.0,0.00024657,2]
[337772079,1726093851274,-500.0,0.00024657,2]
[337772080,1726093851284,-967.91,0.00024657,2]
[337772081,1726093851296,-500.0,0.00024657,2]
[337772082,1726093851306,-923.79,0.00024657,2]
[337772083,1726093851317,-151.0,0.00024657,7]
[337772084,1726093851328,-151.0,0.00024657,7]
[337772085,1726093851339,-151.0,0.00024657,7]
[337772086,1726093851349,-151.0,0.00024657,7]
[337772087,1726093851359,-1239.49,0.00024657,2]
[337772088,1726093851370,-500.0,0.00024657,2]
[337772089,1726093851380,-320.173815,0.00024657,7]
[337772090,1726093851392,-320.173815,0.00024657,7]
[337772091,1726093851402,-320.173815,0.00024657,7]
[337772092,1726093851412,-320.173815,0.00024657,7]
[337772093,1726093851423,-320.173815,0.00024657,7]
[337772094,1726093851433,-1828.43,0.00024657,2]
[337772095,1726093851444,-320.173815,0.00024657,7]
[337772096,1726093851455,-320.173815,0.00024657,7]
[337772097,1726093851466,-500.0,0.00024657,2]
[337772098,1726093851477,-320.173815,0.00024657,7]
[337772099,1726093851487,-320.173815,0.00024657,7]
[337772100,1726093851497,-320.173815,0.00024657,7]
[337772101,1726093851507,-500.0,0.00024657,2]
[337772102,1726093851518,-1339.17,0.00024657,2]
[337772103,1726093851528,-500.0,0.00024657,2]
[337772104,1726093851538,-500.0,0.00024657,2]
[337772105,1726093851549,-500.0,0.00024657,2]
[337772106,1726093851559,-1019.8,0.00024657,2]
[337772107,1726093851570,-500.0,0.00024657,2]
[337772108,1726093851581,-500.0,0.00024657,2]
[337772109,1726093851591,-703.8,0.00024657,2]
[337772110,1726093851601,-2117.46,0.00024657,2]
[337772111,1726093851613,-500.0,0.00024657,2]
[337772112,1726093851623,-500.0,0.00024657,2]
[337772113,1726093851635,-500.0,0.00024657,2]
[337772114,1726093851646,-500.0,0.00024657,2]
[337772115,1726093851658,-500.0,0.00024657,2]
[337772116,1726093851669,-1000.0,0.00024657,5]
[337772117,1726093851680,-604.64,0.00024657,2]
[337772118,1726093851692,-500.0,0.00024657,2]
[337772119,1726093851703,-500.0,0.00024657,2]
[337772120,1726093851716,-505.93986967,0.00024657,2]
[337772121,1726093851727,-444.64891132,0.00024657,2]
[337772122,1726093851740,-500.0,0.00024657,2]
[337772123,1726093851752,-500.0,0.00024657,2]
[337772124,1726093851764,-500.0,0.00024657,2]
[337772125,1726093851774,-500.0,0.00024657,2]
[337772126,1726093851785,-500.0,0.00024657,2]
[337772127,1726093851796,-151.0,0.00024657,7]
[337772128,1726093851811,-151.0,0.00024657,7]
[337772129,1726093851823,-500.0,0.00024657,2]
[337772130,1726093851838,-212.957859,0.00024657,7]
[337772131,1726093851850,-500.0,0.00024657,2]
[337772132,1726093851861,-500.0,0.00024657,2]
[337772133,1726093851872,-500.0,0.00024657,2]
[337772134,1726093851883,-500.0,0.00024657,2]
[337772135,1726093851895,-1044.37,0.00024657,2]
[337772136,1726093851906,-1491.14,0.00024657,2]
[337772137,1726093851917,-1227.74,0.00024657,2]
[337772138,1726093851928,-500.0,0.00024657,2]
[337772139,1726093851940,-151.0,0.00024657,7]
[337772140,1726093851953,-2261.66,0.00024657,2]
[337772141,1726093851965,-151.0,0.00024657,7]
[337772142,1726093851975,-1476.7,0.00024657,2]
[337772143,1726093851986,-151.0,0.00024657,7]
[337772144,1726093851996,-151.0,0.00024657,7]
[337772145,1726093852006,-151.0,0.00024657,7]
[337772146,1726093852273,-242.012319,0.00024657,7]
[337772147,1726093852291,-500.0,0.00024657,2]
[337772148,1726093852306,-151.0,0.00024657,7]
[337772149,1726093852316,-151.0,0.00024657,7]
[337772150,1726093852327,-151.0,0.00024657,7]
[337772151,1726093852338,-169.63341,0.00024657,7]
[337772152,1726093852348,-5538.33,0.00024657,2]
[337772153,1726093852358,-504.28,0.00024657,2]
[337772154,1726093852368,-550.90472551,0.00024657,2]
[337772155,1726093852377,-505.43609943,0.00024657,2]
[337772156,1726093852386,-151.0,0.00024657,7]
[337772157,1726093852395,-727.23,0.00024657,2]
[337772158,1726093852404,-151.0,0.00024657,7]
[337772159,1726093852414,-151.0,0.00024657,7]
[337772160,1726093852425,-1483.87,0.00024657,2]
[337772161,1726093852436,-151.0,0.00024657,7]
[337772162,1726093852446,-151.0,0.00024657,7]
[337772163,1726093852456,-151.0,0.00024657,7]
[337772164,1726093852465,-500.0,0.00024657,2]
[337772165,1726093852475,-500.0,0.00024657,2]
[337772166,1726093852484,-500.0,0.00024657,2]
[337772167,1726093852494,-824.0,0.00024657,2]
[337772168,1726093852505,-1495.42,0.00024657,2]
[337772169,1726093852515,-500.0,0.00024657,2]
[337772170,1726093852524,-500.0,0.00024657,2]
[337772171,1726093852534,-1453.21,0.00024657,2]
[337772172,1726093852547,-500.0,0.00024657,2]
[337772173,1726093852558,-551.01397622,0.00024657,2]
[337772174,1726093852568,-500.0,0.00024657,2]
[337772175,1726093852579,-981.1,0.00024657,2]
[337772176,1726093852588,-500.0,0.00024657,2]
[337772177,1726093852597,-556.01,0.00024657,2]
[337772178,1726093852607,-500.0,0.00024657,2]
[337772179,1726093852617,-500.0,0.00024657,2]
[337772180,1726093852627,-500.0,0.00024657,2]
[337772181,1726093852636,-500.0,0.00024657,2]
[337772182,1726093852645,-500.0,0.00024657,2]
[337772183,1726093852654,-500.0,0.00024657,2]
[337772184,1726093852665,-1112.89,0.00024657,2]
[337772185,1726093852676,-500.0,0.00024657,2]
[337772186,1726093852687,-527.78,0.00024657,2]
[337772187,1726093852696,-500.0,0.00024657,2]
[337772188,1726093852705,-500.0,0.00024657,2]
[337772189,1726093852715,-500.0,0.00024657,2]
[337772190,1726093852725,-540.02316542,0.00024657,2]
[337772191,1726093852734,-525.36772513,0.00024657,2]
[337772192,1726093852744,-812.46,0.00024657,2]
[337772193,1726093852753,-3680.55,0.00024657,2]
[337772194,1726093852764,-1332.32,0.00024657,2]
[337772195,1726093852774,-500.0,0.00024657,2]
[337772196,1726093852784,-9062.47,0.00024657,2]
[337772197,1726093852794,-375.227562,0.00024657,7]
[337772198,1726093852807,-375.227562,0.00024657,7]
[337772199,1726093852816,-375.227562,0.00024657,7]
[337772200,1726093852829,-500.0,0.00024657,2]
[337772201,1726093852838,-375.227562,0.00024657,7]
[337772202,1726093852847,-375.227562,0.00024657,7]
[337772203,1726093852857,-375.227562,0.00024657,7]
[337772204,1726093852868,-154.068384,0.00024657,7]
[337772205,1726093852878,-375.227562,0.00024657,7]
[337772206,1726093852887,-154.068384,0.00024657,7]
[337772207,1726093852898,-375.227562,0.00024657,7]
[337772208,1726093852910,-154.068384,0.00024657,7]
[337772209,1726093852920,-375.227562,0.00024657,7]
[337772210,1726093852929,-375.227562,0.00024657,7]
[337772211,1726093852939,-375.227562,0.00024657,7]
[337772212,1726093852949,-154.068384,0.00024657,7]
[337772213,1726093852958,-375.227562,0.00024657,7]
[337772214,1726093852967,-154.068384,0.00024657,7]
[337772215,1726093852976,-154.068384,0.00024657,7]
[337772216,1726093852986,-154.068384,0.00024657,7]
[337772217,1726093852995,-154.068384,0.00024657,7]
[337772218,1726093853004,-154.068384,0.00024657,7]
[337772219,1726093853013,-154.068384,0.00024657,7]
[337772220,1726093853023,-154.068384,0.00024657,7]
[337772221,1726093853033,-154.068384,0.00024657,7]
[337772222,1726093853045,-500.0,0.00024657,2]
[337772223,1726093853056,-22804.59404972,0.00024657,2]
[337772231,1726094732153,-730.89174017,0.00019685,2]
[337772232,1726094756109,-386.89407562,0.00019685,2]
[337772233,1726094829387,-300.0,0.00019684,2]
[337772234,1726094829409,-299.50480495,0.00019684,2]
[337772235,1726094854286,-0.49519505,0.00019684,2]
[337772236,1726094854312,-12231.82430318,0.00019685,2]
[337772237,1726094949249,-300.0,0.00019684,2]
[337772238,1726094949272,-300.0,0.00019684,2]
[337772239,1726094949295,-11550.38988103,0.00019685,2]
[337772240,1726094949316,-3000.0,0.00019733,2]
[337772241,1726094949345,-250.0,0.0001989,2]
[337772242,1726094949365,-178.691585,0.000199,2]
[337772243,1726094949389,-167.14816,0.00020174,2]
[337772244,1726094949410,-167.14816,0.00020261,2]